bitfinex/quotes_BTCUSD_20240929
["timestamp","ask_amount","ask_price","bid_price","bid_amount"]
[1727609502035,0.09721961,65786.0,65785.0,0.003654]
[1727609502240,0.09921961,65786.0,65785.0,0.003654]
[1727609502448,0.19921961,65786.0,65785.0,0.003654]
[1727609503265,0.19721961,65786.0,65785.0,0.003654]
[1727609503927,0.09721961,65786.0,65785.0,0.003654]
[1727609504823,0.19721961,65786.0,65785.0,0.003654]
[1727609508079,0.09721961,65786.0,65785.0,0.003654]
[1727609509156,0.09121961,65786.0,65785.0,0.002654]
[1727609509364,0.09621961,65786.0,65785.0,0.003654]
[1727609509785,0.09121961,65786.0,65785.0,0.002654]
[1727609509993,0.09621961,65786.0,65785.0,0.002654]
[1727609510411,0.08921961,65786.0,65785.0,0.001654]
[1727609510845,0.09621961,65786.0,65785.0,0.002654]
[1727609511282,0.08921961,65786.0,65785.0,0.001654]
[1727609511497,0.09521961,65786.0,65785.0,0.002654]
[1727609511960,0.08421961,65786.0,65785.0,0.001654]
[1727609512182,0.08421961,65786.0,65785.0,0.100654]
[1727609512389,0.09821961,65786.0,65785.0,0.102654]
[1727609512622,0.06739105,65786.0,65785.0,0.101654]
[1727609513053,0.05806783,65786.0,65785.0,0.102654]
[1727609513348,0.05806783,65786.0,65785.0,0.101654]
[1727609513349,0.04906783,65786.0,65785.0,0.101654]
[1727609513553,0.06488438,65786.0,65785.0,0.101654]
[1727609513771,0.07088438,65786.0,65785.0,0.102654]
[1727609514398,0.06988438,65786.0,65785.0,0.101654]
[1727609514620,0.05506783,65786.0,65785.0,0.101654]
[1727609515280,0.04106783,65786.0,65785.0,0.100654]
[1727609515495,0.03706783,65786.0,65785.0,0.100654]
[1727609515721,0.04406783,65786.0,65785.0,0.101654]
[1727609516376,0.03906783,65786.0,65785.0,0.101654]
[1727609516581,0.03206783,65786.0,65785.0,0.100654]
[1727609517456,0.03706783,65786.0,65785.0,0.100654]
[1727609517880,0.04306783,65786.0,65785.0,0.100654]
[1727609518315,0.03706783,65786.0,65785.0,0.100654]
[1727609518742,0.04106783,65786.0,65785.0,0.100654]
[1727609519420,0.064897,65786.0,65785.0,0.100654]
[1727609519898,0.08371917,65786.0,65785.0,0.100654]
[1727609520531,0.08371917,65786.0,65785.0,0.001654]
[1727609545088,0.05989,65786.0,65785.0,0.001654]
[1727609547610,0.0837194,65786.0,65785.0,0.001654]
[1727609568307,0.05989,65786.0,65785.0,0.001654]
[1727609569554,0.06189,65786.0,65785.0,0.001654]
[1727609569787,0.08571954,65786.0,65785.0,0.001654]
[1727609571565,0.13789681,65786.0,65785.0,0.001654]
[1727609571989,0.23789681,65786.0,65785.0,0.001654]
[1727609580113,0.08371954,65786.0,65785.0,0.001654]
[1727609581203,0.08371954,65786.0,65785.0,0.101454]
[1727609581929,0.07949954,65786.0,65785.0,0.101454]
[1727609582164,0.07949954,65786.0,65785.0,0.180954]
[1727609582390,0.05567,65786.0,65785.0,0.180954]
[1727609582631,0.20984044,65786.0,65785.0,0.180954]
[1727609582851,0.30984044,65786.0,65785.0,0.180954]
[1727609583074,0.30084044,65786.0,65785.0,0.180954]
[1727609583289,0.30384044,65786.0,65785.0,0.180954]
[1727609583743,0.14667,65786.0,65785.0,0.180954]
[1727609584213,0.30184044,65786.0,65785.0,0.180954]
[1727609584422,0.2017962,65786.0,65785.0,0.180954]
[1727609584635,0.14767,65786.0,65785.0,0.180954]
[1727609585080,0.14967,65786.0,65785.0,0.180954]
[1727609585304,0.14667,65786.0,65785.0,0.180954]
[1727609585555,0.04667,65786.0,65785.0,0.180954]
[1727609585779,0.04667,65786.0,65785.0,0.183954]
[1727609586678,0.18360499,65786.0,65785.0,0.183954]
[1727609587110,0.28360499,65786.0,65785.0,0.183954]
[1727609587830,0.14667,65786.0,65785.0,0.183954]
[1727609589205,0.17049748,65786.0,65785.0,0.183954]
[1727609589835,0.07049748,65786.0,65785.0,0.183954]
[1727609591335,0.04667,65786.0,65785.0,0.183954]
[1727609592803,0.07049748,65786.0,65785.0,0.183954]
[1727609593456,0.04667,65786.0,65785.0,0.183954]
[1727609594334,0.01964917,65786.0,65785.0,0.183954]
[1727609594982,0.13365974,65786.0,65785.0,0.183954]
[1727609596539,0.15748685,65786.0,65785.0,0.183954]
[1727609597249,0.1346606,65786.0,65785.0,0.183954]
[1727609597706,0.01964917,65786.0,65785.0,0.183954]
[1727609599051,0.06522915,65786.0,65785.0,0.183954]
[1727609599683,0.01964917,65786.0,65785.0,0.183954]
[1727609603793,0.000827,65786.0,65785.0,0.183954]
[1727609604019,0.01959731,65786.0,65785.0,0.183954]
[1727609604539,0.01959731,65786.0,65785.0,0.181954]
[1727609604754,0.01959731,65786.0,65785.0,0.183954]
[1727609605172,0.01959731,65786.0,65785.0,0.181954]
[1727609605610,0.02059731,65786.0,65785.0,0.188954]
[1727609605843,0.02059731,65786.0,65785.0,0.187954]
[1727609606063,0.02059731,65786.0,65785.0,0.190954]
[1727609606523,0.02059731,65786.0,65785.0,0.187954]
[1727609606740,0.02159731,65786.0,65785.0,0.193954]
[1727609614437,0.06713803,65786.0,65785.0,0.193954]
[1727609614911,0.02159731,65786.0,65785.0,0.014654]
[1727609615390,0.06713803,65786.0,65785.0,0.014654]
[1727609618416,0.02159731,65786.0,65785.0,0.014654]
[1727609619345,0.089936,65786.0,65785.0,0.014654]
[1727609620066,0.0671673,65786.0,65785.0,0.014654]
[1727609620281,0.02159731,65786.0,65785.0,0.014654]
[1727609620764,0.089936,65786.0,65785.0,0.014654]
[1727609621618,0.02159731,65786.0,65785.0,0.014654]
[1727609622554,0.11271556,65786.0,65785.0,0.014654]
[1727609623005,0.0899838,65786.0,65785.0,0.014654]
[1727609623480,0.11271556,65786.0,65785.0,0.014654]
[1727609624423,0.02159731,65786.0,65785.0,0.014654]
[1727609625136,0.13549513,65786.0,65785.0,0.014654]
[1727609627681,0.02159731,65786.0,65785.0,0.014654]
[1727609646007,0.15862651,65786.0,65785.0,0.014654]
[1727609646709,0.02102483,65786.0,65785.0,0.014654]
[1727609656707,0.02046863,65786.0,65785.0,0.014654]
[1727609659300,0.02046863,65786.0,65785.0,0.0330574]
[1727609659727,0.02129563,65786.0,65785.0,0.0330574]
[1727609661212,0.02029563,65786.0,65785.0,0.0270574]
[1727609661424,0.02029563,65786.0,65785.0,0.0320574]
[1727609661670,0.01929563,65786.0,65785.0,0.0200574]
[1727609661882,0.01929563,65786.0,65785.0,0.0270574]
[1727609662100,0.01929563,65786.0,65785.0,0.0330574]
[1727609662311,0.01929563,65786.0,65785.0,0.0270574]
[1727609662523,0.01929563,65786.0,65785.0,0.0200574]
[1727609662723,0.01929563,65786.0,65785.0,0.0350574]
[1727609662932,0.01929563,65786.0,65785.0,0.0280574]
[1727609663132,0.01929563,65786.0,65785.0,0.0200574]
[1727609663561,0.01929563,65786.0,65785.0,0.0290574]
[1727609664850,0.01929563,65786.0,65785.0,0.0200574]
[1727609665057,0.01929563,65786.0,65785.0,0.0280574]
[1727609665732,0.01929563,65786.0,65785.0,0.0200574]
[1727609665971,0.01929563,65786.0,65785.0,0.0350574]
[1727609670415,0.1335034,65786.0,65785.0,0.0350574]
[1727609670655,0.01929563,65786.0,65785.0,0.0350574]
[1727609671569,0.01929563,65786.0,65785.0,0.016654]
[1727609674449,0.01929563,65786.0,65785.0,0.009654]
[1727609674675,0.01929563,65786.0,65785.0,0.016654]
[1727609675309,0.01929563,65786.0,65785.0,0.017654]
[1727609675510,0.01929563,65786.0,65785.0,0.025654]
[1727609675723,0.01929563,65786.0,65785.0,0.0451574]
[1727609675931,0.01929563,65786.0,65785.0,0.0371574]
[1727609676141,0.13349142,65786.0,65785.0,0.0371574]
[1727609676350,0.13349142,65786.0,65785.0,0.0471574]
[1727609678354,0.01929563,65786.0,65785.0,0.0471574]
[1727609678577,0.13347392,65786.0,65785.0,0.0471574]
[1727609678780,0.13347392,65786.0,65785.0,0.027654]
[1727609679666,0.01929563,65786.0,65785.0,0.027654]
[1727609709309,0.11063826,65786.0,65785.0,0.027654]
[1727609710492,0.01929563,65786.0,65785.0,0.027654]
[1727609711466,0.1334766,65786.0,65785.0,0.027654]
[1727609712185,0.01929563,65786.0,65785.0,0.027654]
[1727609731958,0.01257095,65786.0,65785.0,0.027654]
[1727609733755,0.01257095,65786.0,65785.0,0.0477774]
[1727609734219,0.01582942,65786.0,65785.0,0.0477774]
[1727609738294,0.01582942,65786.0,65785.0,0.0485574]
[1727609738511,0.01582942,65786.0,65785.0,0.20447363]
[1727609739212,0.01582942,65786.0,65785.0,0.18847363]
[1727609739439,0.000827,65786.0,65785.0,0.18847363]
[1727609739875,0.000827,65786.0,65785.0,0.17847363]
[1727609740081,0.000827,65786.0,65785.0,0.18847363]
[1727609740518,0.000827,65786.0,65785.0,0.20187387]
[1727609740750,0.000827,65786.0,65785.0,0.21487387]
[1727609740957,0.000827,65786.0,65785.0,0.22887387]
[1727609741398,0.000827,65786.0,65785.0,0.22573572]
[1727609741636,0.000827,65786.0,65785.0,0.23873572]
[1727609742283,0.000827,65786.0,65785.0,0.22573572]
[1727609742719,0.000827,65786.0,65785.0,0.23773572]
[1727609742933,0.000827,65786.0,65785.0,0.22573572]
[1727609743153,0.000827,65786.0,65785.0,0.22373572]
[1727609743372,0.000827,65786.0,65785.0,0.23573572]
[1727609744063,0.000827,65786.0,65785.0,0.22373572]
[1727609744281,0.000827,65786.0,65785.0,0.23573572]
[1727609745635,0.000827,65786.0,65785.0,0.38774572]
[1727609745858,0.000827,65786.0,65785.0,0.38470609]
[1727609746071,0.0190598,65786.0,65785.0,0.38470609]
[1727609746960,0.000827,65786.0,65785.0,0.38470609]
[1727609747593,0.000827,65786.0,65785.0,0.37270609]
[1727609748459,0.000827,65786.0,65785.0,0.38470609]
[1727609748680,0.000827,65786.0,65785.0,0.37370609]
[1727609748893,0.000827,65786.0,65785.0,0.38470609]
[1727609749111,0.000827,65786.0,65785.0,0.37370609]
[1727609749560,0.000827,65786.0,65785.0,0.38770609]
[1727609749773,0.000827,65786.0,65785.0,0.36170609]
[1727609749980,0.000827,65786.0,65785.0,0.37570609]
[1727609750195,0.000827,65786.0,65785.0,0.38970609]
[1727609750475,0.000827,65786.0,65785.0,0.37570609]
[1727609750882,0.000827,65786.0,65785.0,0.38970609]
[1727609751089,0.000827,65786.0,65785.0,0.37884424]
[1727609760971,0.01504252,65786.0,65785.0,0.37884424]
[1727609762814,0.000827,65786.0,65785.0,0.37884424]
[1727609777502,0.000827,65786.0,65785.0,0.53413218]
[1727609792721,0.000827,65786.0,65785.0,0.57964125]
[1727609795006,0.000827,65786.0,65785.0,0.53413218]
[1727609801323,0.115295,65795.0,65790.0,0.151996]
[1727609801543,0.115295,65795.0,65791.0,0.00303956]
[1727609801788,0.16622934,65794.0,65791.0,0.00303956]
[1727609802673,0.16622934,65794.0,65791.0,0.01303956]
[1727609803098,0.16622934,65794.0,65791.0,0.00303956]
[1727609803334,0.16622934,65794.0,65791.0,0.08805338]
[1727609803972,0.16622934,65794.0,65791.0,0.25204938]
[1727609804187,0.01424034,65794.0,65792.0,0.151993]
[1727609804454,0.01424034,65794.0,65791.0,0.24900882]
[1727609804686,0.151987,65795.0,65791.0,0.24900882]
[1727609804904,0.01423827,65793.0,65791.0,0.24900882]
[1727609805118,0.151987,65795.0,65792.0,0.00303957]
[1727609805334,0.151987,65795.0,65792.0,0.02643981]
[1727609806005,0.151987,65795.0,65792.0,0.03743981]
[1727609806228,0.151987,65795.0,65792.0,0.03843981]
[1727609806456,0.151987,65795.0,65792.0,0.04843981]
[1727609806668,0.151987,65795.0,65792.0,0.03643981]
[1727609806913,0.151987,65795.0,65792.0,0.04743981]
[1727609807128,0.01424034,65794.0,65793.0,0.20863556]
[1727609807574,0.19767422,65796.0,65793.0,0.20863556]
[1727609808028,0.01424241,65795.0,65793.0,0.05664456]
[1727609808290,0.01424241,65795.0,65794.0,0.15580856]
[1727609808508,0.01424241,65795.0,65794.0,0.24068846]
[1727609808734,0.06211922,65799.0,65795.0,0.30397]
[1727609808953,0.06211922,65799.0,65798.0,0.00078]
[1727609809189,0.06211922,65799.0,65798.0,0.15276]
[1727609809430,0.01643,65799.0,65798.0,0.00078]
[1727609809668,0.01643,65799.0,65798.0,0.07479382]
[1727609809935,0.01643,65799.0,65798.0,0.22677382]
[1727609810182,0.01643,65799.0,65798.0,0.24177382]
[1727609811639,0.01643,65799.0,65798.0,0.23681296]
[1727609812164,0.01643,65799.0,65798.0,0.23781296]
[1727609812407,0.01643,65799.0,65798.0,0.24781296]
[1727609812642,0.01643,65799.0,65798.0,0.22981296]
[1727609812885,0.01643,65799.0,65798.0,0.24777382]
[1727609813383,0.01643,65799.0,65798.0,0.22677382]
[1727609813627,0.01643,65799.0,65798.0,0.23877382]
[1727609813853,0.01643,65799.0,65798.0,0.24181295]
[1727609814095,0.01643,65799.0,65798.0,0.24181298]
[1727609814558,0.01643,65799.0,65798.0,0.25481298]
[1727609814991,0.01643,65799.0,65798.0,0.22981298]
[1727609815210,0.01643,65799.0,65798.0,0.39910092]
[1727609815440,0.01643,65799.0,65798.0,0.39606176]
[1727609815678,0.01643,65799.0,65798.0,0.41006176]
[1727609816348,0.01643,65799.0,65798.0,0.39606176]
[1727609816560,0.01643,65799.0,65798.0,0.38206176]
[1727609817427,0.01643,65799.0,65798.0,0.39606176]
[1727609818117,0.01643,65799.0,65798.0,0.41006176]
[1727609818789,0.01643,65799.0,65798.0,0.39606176]
[1727609819462,0.01643,65799.0,65798.0,0.41006176]
[1727609823178,0.017257,65799.0,65798.0,0.41006176]
[1727609835662,0.017257,65799.0,65798.0,5.48306176]
[1727609835908,0.017257,65799.0,65798.0,5.75606176]
[1727609836375,0.017257,65799.0,65798.0,5.76306176]
[1727609836635,0.017257,65799.0,65798.0,6.05311358]
[1727609837104,0.01704302,65799.0,65798.0,5.9989982]
[1727609837343,0.01704302,65799.0,65798.0,5.9709982]
[1727609837573,0.01704302,65799.0,65798.0,6.07568962]
[1727609837804,0.01704302,65799.0,65798.0,6.08968962]
[1727609838036,0.01704302,65799.0,65798.0,6.06168962]
[1727609838287,0.01704302,65799.0,65798.0,6.07568962]
[1727609838519,0.01704302,65799.0,65798.0,6.06168962]
[1727609838764,0.01704302,65799.0,65798.0,5.9709982]
[1727609839486,0.01704302,65799.0,65798.0,5.9849982]
[1727609839675,0.01704302,65799.0,65798.0,6.05298049]
[1727609839920,0.01704302,65799.0,65798.0,6.03898049]
[1727609840148,0.01704302,65799.0,65798.0,6.05298049]
[1727609840613,0.01704302,65799.0,65798.0,5.76306176]
[1727609840869,0.01704302,65799.0,65798.0,5.74906176]
[1727609841088,0.01704302,65799.0,65798.0,5.76306176]
[1727609842676,0.01704302,65799.0,65798.0,5.80835904]
[1727609843177,0.01704302,65799.0,65798.0,5.79435904]
[1727609843404,0.01704302,65799.0,65798.0,5.80835904]
[1727609843618,0.01704302,65799.0,65798.0,5.79435904]
[1727609843834,0.01704302,65799.0,65798.0,5.79235904]
[1727609844043,0.01704302,65799.0,65798.0,5.80635904]
[1727609844285,0.01704302,65799.0,65798.0,5.80835904]
[1727609844709,0.01704302,65799.0,65798.0,5.76306176]
[1727609846025,0.01704302,65799.0,65798.0,5.82395776]
[1727609846258,0.01704302,65799.0,65798.0,5.82195776]
[1727609846496,0.01704302,65799.0,65798.0,5.82395776]
[1727609847458,0.01704302,65799.0,65798.0,5.83561176]
[1727609848348,0.01704302,65799.0,65798.0,5.82161176]
[1727609848812,0.01704302,65799.0,65798.0,5.80761176]
[1727609849509,0.01704302,65799.0,65798.0,5.82161176]
[1727609850895,0.01704302,65799.0,65798.0,5.83561176]
[1727609851117,0.01704302,65799.0,65798.0,6.06936452]
[1727609851340,0.000827,65807.0,65806.0,0.446141]
[1727609851558,0.000827,65807.0,65806.0,0.60142894]
[1727609852245,0.000827,65807.0,65806.0,0.82833552]
[1727609852454,0.000827,65807.0,65806.0,0.60642894]
[1727609852672,0.000827,65807.0,65806.0,0.62042894]
[1727609852860,0.000827,65807.0,65806.0,0.6770735]
[1727609853382,0.000827,65807.0,65806.0,0.6750735]
[1727609853599,0.000827,65807.0,65806.0,0.6890735]
[1727609854269,0.000827,65807.0,65806.0,0.5156735]
[1727609854960,0.000827,65807.0,65806.0,0.52624162]
[1727609857369,0.000827,65807.0,65806.0,0.49824162]
[1727609857822,0.000827,65807.0,65806.0,0.51224162]
[1727609858046,0.000827,65807.0,65806.0,0.49824162]
[1727609858314,0.000827,65807.0,65806.0,0.51224162]
[1727609859208,0.000827,65807.0,65806.0,0.52624162]
[1727609859683,0.000827,65807.0,65806.0,0.7391482]
[1727609859895,0.000827,65807.0,65806.0,0.51224162]
[1727609860140,0.000827,65807.0,65806.0,0.49824162]
[1727609860348,0.000827,65807.0,65806.0,0.52624162]
[1727609877859,0.000827,65807.0,65806.0,0.69364162]
[1727609878509,0.000827,65807.0,65806.0,0.73895249]
[1727609879596,0.000827,65807.0,65806.0,0.76160792]
[1727609880645,0.000827,65807.0,65806.0,0.92682843]
[1727609881476,0.000827,65807.0,65806.0,0.92683072]
[1727609882549,0.000827,65807.0,65806.0,1.04022305]
[1727609889516,0.000827,65807.0,65806.0,0.92683072]
[1727609889984,0.000827,65807.0,65806.0,0.93383072]
[1727609890226,0.000827,65807.0,65806.0,0.94383072]
[1727609891924,0.000827,65807.0,65806.0,0.95946544]
[1727609894541,0.000827,65807.0,65806.0,0.93146544]
[1727609894752,0.000827,65807.0,65806.0,0.94546544]
[1727609895399,0.000827,65807.0,65806.0,0.95946544]
[1727609895818,0.000827,65807.0,65806.0,0.95990739]
[1727609896524,0.000827,65807.0,65806.0,0.94590739]
[1727609896746,0.000827,65807.0,65806.0,0.95990739]
[1727609897627,0.000827,65807.0,65806.0,0.97748115]
[1727609898937,0.000827,65807.0,65806.0,0.96184643]
[1727609900662,0.000827,65807.0,65806.0,0.96188334]
[1727609902569,0.000827,65807.0,65806.0,0.97754398]
[1727609902803,0.000827,65815.0,65814.0,0.290723]
[1727609903029,0.000827,65815.0,65814.0,0.85861692]
[1727609903231,0.000827,65815.0,65814.0,0.8555789]
[1727609903906,0.000827,65815.0,65814.0,0.88715266]
[1727609904528,0.000827,65815.0,65814.0,0.90115266]
[1727609904737,0.000827,65815.0,65814.0,0.96116648]
[1727609905165,0.000827,65815.0,65814.0,0.97402278]
[1727609905384,0.000827,65815.0,65814.0,0.96002278]
[1727609905642,0.000827,65815.0,65814.0,0.73831302]
[1727609905885,0.000827,65815.0,65814.0,0.98477862]
[1727609906342,0.000827,65815.0,65814.0,0.97077862]
[1727609906549,0.000827,65815.0,65814.0,0.98477862]
[1727609906972,0.000827,65815.0,65814.0,0.97077862]
[1727609907179,0.000827,65815.0,65814.0,0.96877862]
[1727609907385,0.000827,65815.0,65814.0,0.98477862]
[1727609907806,0.000827,65815.0,65814.0,0.99877862]
[1727609908237,0.000827,65815.0,65814.0,1.11219286]
[1727609909420,0.000827,65815.0,65814.0,1.0946191]
[1727609909837,0.000827,65815.0,65814.0,1.11200977]
[1727609911366,0.000827,65815.0,65814.0,0.99859553]
[1727609913593,0.000827,65815.0,65814.0,0.98120486]
[1727609914043,0.000827,65815.0,65814.0,0.98729286]
[1727609915545,0.000827,65815.0,65814.0,0.98672749]
[1727609916624,0.000827,65815.0,65814.0,1.00408885]
[1727609917081,0.000827,65815.0,65814.0,1.03456885]
[1727609917531,0.000827,65815.0,65814.0,0.99056885]
[1727609917725,0.000827,65815.0,65814.0,0.99256885]
[1727609917963,0.000827,65815.0,65814.0,1.02056885]
[1727609918189,0.000827,65815.0,65814.0,1.00656885]
[1727609918650,0.000827,65815.0,65814.0,1.01856885]
[1727609919079,0.000827,65815.0,65814.0,1.00656885]
[1727609919293,0.000827,65815.0,65814.0,0.83266885]
[1727609919501,0.000827,65815.0,65814.0,0.78118885]
[1727609920105,0.000827,65815.0,65814.0,0.76718885]
[1727609920319,0.000827,65815.0,65814.0,0.75318885]
[1727609920528,0.000827,65815.0,65814.0,0.76718885]
[1727609920750,0.000827,65815.0,65814.0,0.80418885]
[1727609920979,0.000827,65815.0,65814.0,0.77618885]
[1727609921412,0.000827,65815.0,65814.0,0.79018885]
[1727609921636,0.000827,65815.0,65814.0,0.77618885]
[1727609921862,0.000827,65815.0,65814.0,0.79018885]
[1727609922978,0.000827,65815.0,65814.0,0.80418885]
[1727609923468,0.000827,65815.0,65814.0,0.79018885]
[1727609923685,0.000827,65815.0,65814.0,0.80418885]
[1727609925248,0.000827,65815.0,65814.0,0.80347409]
[1727609928324,0.000827,65815.0,65814.0,0.78947409]
[1727609929881,0.000827,65815.0,65814.0,0.55828862]
[1727609930089,0.000827,65815.0,65814.0,0.78938593]
[1727609930516,0.000827,65815.0,65814.0,0.77538593]
[1727609930697,0.000827,65815.0,65814.0,0.80338593]
[1727609932744,0.000827,65815.0,65814.0,0.78602457]
[1727609943201,0.000827,65815.0,65814.0,0.78615558]
[1727609949086,0.0772,65825.0,65814.0,0.78615558]
[1727609949087,0.15072892,65830.0,65826.0,0.151914]
[1727609949296,0.15072892,65830.0,65826.0,0.30720194]
[1727609949520,0.01874814,65829.0,65826.0,0.33060218]
[1727609949727,0.17065614,65829.0,65826.0,0.33060218]
[1727609949941,0.151904,65831.0,65827.0,0.151913]
[1727609950197,0.01874548,65828.0,65826.0,0.19268818]
[1727609950425,0.151908,65830.0,65826.0,0.41524674]
[1727609950878,0.01874814,65829.0,65826.0,0.42924674]
[1727609951553,0.01874814,65829.0,65826.0,0.40124674]
[1727609952022,0.01874814,65829.0,65826.0,0.38724674]
[1727609952244,0.1731,65828.0,65826.0,0.38724674]
[1727609952474,0.1731,65828.0,65827.0,0.014]
[1727609953552,0.1731,65828.0,65826.0,0.32120294]
[1727609954023,0.1731,65828.0,65827.0,0.014]
[1727609954645,0.173927,65828.0,65827.0,0.014]
[1727609955803,0.173927,65828.0,65827.0,0.028]
[1727609957079,0.19267386,65828.0,65827.0,0.028]
[1727609958855,0.19826245,65828.0,65827.0,0.028]
[1727609959505,0.11896245,65828.0,65827.0,0.179913]
[1727609959727,0.11896245,65828.0,65827.0,0.028]
[1727609959950,0.11896245,65828.0,65827.0,0.13469445]
[1727609962492,0.11896245,65828.0,65827.0,0.028]
[1727609962709,0.27087345,65828.0,65827.0,0.028]
[1727609963148,0.11896245,65828.0,65827.0,0.028]
[1727609963386,0.27087345,65828.0,65827.0,0.028]
[1727609964698,0.11896245,65828.0,65827.0,0.028]
[1727609964932,0.27087345,65828.0,65827.0,0.028]
[1727609965581,0.11896245,65828.0,65827.0,0.028]
[1727609970522,0.27087345,65828.0,65827.0,0.028]
[1727609970951,0.11896245,65828.0,65827.0,0.028]
[1727609973687,0.27087345,65828.0,65827.0,0.028]
[1727609974794,0.34687345,65828.0,65827.0,0.028]
[1727609975853,0.39251168,65828.0,65827.0,0.028]
[1727609976113,0.39251168,65828.0,65827.0,0.014]
[1727609976564,0.39251168,65828.0,65817.0,0.22690658]
[1727609976565,0.49548445,65828.0,65825.0,0.00078]
[1727609976787,0.151915,65826.0,65825.0,0.00078]
[1727609977014,0.242415,65826.0,65825.0,0.00078]
[1727609977204,0.26672313,65826.0,65825.0,0.00078]
[1727609978126,0.26672313,65826.0,65825.0,0.02678]
[1727609979484,0.26672313,65826.0,65825.0,0.028434]
[1727609996632,0.17622313,65826.0,65825.0,0.028434]
[1727609996840,0.17622313,65826.0,65825.0,0.002434]
[1727609997294,0.17622313,65826.0,65825.0,0.027434]
[1727609997507,0.17622313,65826.0,65825.0,0.015434]
[1727609997727,0.17622313,65826.0,65825.0,0.002434]
[1727609997940,0.17622313,65826.0,65825.0,0.030434]
[1727609998198,0.02430813,65826.0,65825.0,0.37665824]
[1727609998419,0.02430813,65826.0,65825.0,0.55157524]
[1727609998645,0.000827,65828.0,65827.0,0.174913]
[1727609998861,0.000827,65828.0,65827.0,0.50290094]
[1727609999085,0.000827,65828.0,65827.0,0.61932496]
[1727609999339,0.000827,65828.0,65827.0,0.62010496]
[1727610000220,0.000827,65828.0,65827.0,0.63410496]
[1727610000940,0.000827,65828.0,65827.0,0.64810496]
[1727610002491,0.000827,65828.0,65827.0,0.63410496]
[1727610002698,0.000827,65828.0,65827.0,0.64810496]
[1727610002908,0.000827,65828.0,65827.0,0.63410496]
[1727610003337,0.000827,65828.0,65827.0,0.64810496]
[1727610004005,0.000827,65828.0,65827.0,0.63410496]
[1727610004666,0.000827,65828.0,65827.0,0.64810496]
[1727610009382,0.000827,65828.0,65827.0,0.62010496]
[1727610009802,0.000827,65828.0,65827.0,0.63410496]
[1727610010029,0.000827,65828.0,65827.0,0.64810496]
[1727610010666,0.000827,65828.0,65827.0,0.62010496]
[1727610010915,0.000827,65828.0,65827.0,0.64810496]
[1727610014739,0.000827,65828.0,65827.0,0.66056896]
[1727610015171,0.000827,65828.0,65827.0,0.66222296]
[1727610016915,0.000827,65828.0,65827.0,0.66122296]
[1727610033397,0.000827,65828.0,65827.0,0.99312954]
[1727610033619,0.000827,65828.0,65827.0,0.76622296]
[1727610035577,0.000827,65828.0,65827.0,0.81348437]
[1727610038536,0.000827,65828.0,65827.0,0.76822296]
[1727610039697,0.000827,65828.0,65827.0,0.8361524]
[1727610040626,0.000827,65828.0,65827.0,1.06497687]
[1727610041570,0.000827,65828.0,65827.0,0.99704743]
[1727610042299,0.000827,65828.0,65827.0,1.01268434]
[1727610042540,0.000827,65828.0,65827.0,1.10325693]
[1727610043493,0.000827,65828.0,65827.0,1.12590008]
[1727610044193,0.000827,65828.0,65827.0,1.12628789]
[1727610044885,0.000827,65828.0,65827.0,1.12428789]
[1727610045590,0.000827,65828.0,65827.0,1.12628789]
[1727610046326,0.000827,65828.0,65827.0,1.12428789]
[1727610048245,0.000827,65828.0,65827.0,1.12628789]
[1727610048952,0.000827,65828.0,65827.0,0.78385987]
[1727610049187,0.000827,65828.0,65827.0,1.12634892]
[1727610049658,0.000827,65828.0,65827.0,1.01296796]
[1727610051841,0.000827,65828.0,65827.0,1.02296796]
[1727610053857,0.000827,65828.0,65827.0,1.02291299]
[1727610058635,0.000827,65828.0,65827.0,1.00727608]
[1727610058854,0.000827,65828.0,65827.0,1.00728565]
[1727610059498,1e-06,65828.0,65827.0,1.00528565]
[1727610059734,0.0124637,65837.0,65827.0,1.00528565]
[1727610059735,0.0124637,65837.0,65836.0,0.157672]
[1727610059967,0.0124637,65837.0,65836.0,0.94170083]
[1727610060219,0.0124637,65837.0,65836.0,1.05506949]
[1727610060673,0.0124637,65837.0,65836.0,1.07074224]
[1727610061380,0.0124637,65837.0,65836.0,0.95737358]
[1727610061622,0.0124637,65837.0,65836.0,0.97137358]
[1727610061866,0.0124637,65837.0,65836.0,1.08474224]
[1727610062170,0.0124637,65837.0,65836.0,1.09874224]
[1727610062503,0.0124637,65837.0,65836.0,0.98537358]
[1727610062721,0.0124637,65837.0,65836.0,0.98737358]
[1727610063392,0.0124637,65837.0,65836.0,1.07805011]
[1727610066696,0.0124637,65837.0,65836.0,1.07715242]
[1727610066901,0.0124637,65837.0,65836.0,1.07515242]
[1727610067335,0.0124637,65837.0,65836.0,0.98450075]
[1727610067774,0.0124637,65837.0,65836.0,0.81210075]
[1727610068015,0.0124637,65837.0,65836.0,0.8229741]
[1727610071299,0.0124637,65837.0,65836.0,0.89094766]
[1727610071739,0.0124637,65837.0,65836.0,0.90844326]
[1727610072384,0.0124637,65837.0,65836.0,0.89277051]
[1727610073688,0.0132907,65837.0,65836.0,0.89277051]
[1727610073914,0.0132907,65837.0,65836.0,1.29327709]
[1727610074142,0.0132907,65837.0,65836.0,1.16732164]
[1727610074359,0.0132907,65837.0,65836.0,1.02886695]
[1727610074601,0.0132907,65837.0,65836.0,1.01137135]
[1727610074828,0.0132907,65837.0,65836.0,0.87027288]
[1727610075282,0.0132907,65837.0,65836.0,0.84227288]
[1727610075507,0.0132907,65837.0,65836.0,0.85627288]
[1727610075721,0.0132907,65837.0,65836.0,0.87027288]
[1727610075938,0.0132907,65837.0,65836.0,0.85627288]
[1727610076393,0.0132907,65837.0,65836.0,0.85596725]
[1727610076602,0.0132907,65837.0,65836.0,0.86996725]
[1727610077058,0.0132907,65837.0,65836.0,0.85596725]
[1727610077513,0.0132907,65837.0,65836.0,0.77399626]
[1727610077944,0.0132907,65837.0,65836.0,0.78799626]
[1727610078370,0.0132907,65837.0,65836.0,0.80199626]
[1727610080164,0.0132907,65837.0,65836.0,0.81910776]
[1727610082734,0.0132907,65837.0,65836.0,0.88708406]
[1727610082965,0.0132907,65837.0,65836.0,0.59122299]
[1727610085207,0.0132907,65837.0,65836.0,0.67249029]
[1727610090598,0.0132907,65837.0,65836.0,0.900609]
[1727610091022,0.0132907,65837.0,65836.0,0.90071459]
[1727610093402,0.0132907,65837.0,65836.0,1.06370309]
[1727610094502,0.0132907,65837.0,65836.0,0.99570713]
[1727610096046,0.0132907,65837.0,65836.0,1.08636841]
[1727610097855,0.0132907,65837.0,65836.0,1.08836841]